bitfinex/quotes_ETHUSD_20240907
["timestamp","ask_amount","ask_price","bid_price","bid_amount"]
[1725724033063,3.0,2309.6,2309.4,0.08579238]
[1725724033280,16.0573116,2310.1,2309.6,4.32973]
[1725724033504,5.35573116,2310.0,2309.6,4.32973]
[1725724033664,5.35573116,2310.0,2309.7,0.08540837]
[1725724034799,9.68474116,2310.0,2309.7,0.08540837]
[1725724035196,4.32938,2309.8,2309.3,4.33031]
[1725724035502,5.0683516,2309.5,2309.3,4.33031]
[1725724036366,5.0683516,2309.5,2309.4,4.33012]
[1725724036563,5.6183516,2309.5,2309.4,4.33012]
[1725724037419,5.6183516,2309.5,2309.4,4.41591238]
[1725724041451,5.6183516,2309.5,2309.4,0.08579238]
[1725724042144,5.6183516,2309.5,2309.4,4.41591238]
[1725724045418,5.6183516,2309.5,2309.4,0.08579238]
[1725724045620,6.48018676,2309.5,2309.4,0.08579238]
[1725724045833,9.48018676,2309.5,2309.4,0.08579238]
[1725724046032,9.33197318,2309.5,2309.1,4.33059]
[1725724046246,3.55,2309.4,2309.1,4.33059]
[1725724046440,3.55,2309.4,2309.2,0.08646425]
[1725724047964,3.55,2309.4,2309.2,4.41694425]
[1725724048622,3.55,2309.4,2309.3,4.33031]
[1725724048918,3.55,2309.4,2309.3,4.41670242]
[1725724050164,3.55,2309.4,2309.3,0.08639242]
[1725724050326,3.55,2309.4,2309.2,4.33048]
[1725724050527,3.55,2309.4,2309.3,0.08639242]
[1725724050751,3.55,2309.4,2309.2,4.33048]
[1725724050954,3.55,2309.4,2309.3,4.41670242]
[1725724052756,4.92013802,2309.5,2309.4,4.33012]
[1725724052992,3.0,2309.5,2309.4,8.74650439]
[1725724053190,4.92013802,2309.8,2309.6,4.32972]
[1725724053389,3.55,2309.7,2309.6,4.32972]
[1725724054301,3.55,2309.7,2309.4,4.32994]
[1725724054603,3.55,2309.7,2309.5,4.32989]
[1725724054758,0.55,2309.7,2309.5,4.32989]
[1725724054958,0.55,2309.8,2309.5,4.32989]
[1725724055813,0.55,2309.8,2309.6,4.32974]
[1725724055962,4.92013802,2309.7,2309.6,4.32974]
[1725724056295,8.47013802,2309.7,2309.5,4.32992]
[1725724056486,7.92013802,2309.7,2309.5,4.32992]
[1725724056657,3.0,2309.6,2309.5,4.32992]
[1725724062729,3.0,2309.6,2309.5,8.65986]
[1725724063524,3.0,2309.6,2309.5,4.32992]
[1725724066000,6.68913566,2309.6,2309.5,4.32992]
[1725724067470,6.68913566,2309.6,2309.5,4.41610134]
[1725724069289,8.49829343,2309.6,2309.5,4.41610134]
[1725724070362,6.68913566,2309.6,2309.5,4.41610134]
[1725724072660,6.68913566,2309.6,2309.5,4.36610134]
[1725724073756,7.68634753,2309.6,2309.5,0.08618134]
[1725724073996,10.96933059,2309.6,2309.5,0.08618134]
[1725724074204,10.96933059,2309.6,2309.3,4.33013]
[1725724074492,3.28298306,2309.5,2309.3,4.33013]
[1725724075460,0.55,2309.5,2309.3,4.33013]
[1725724075860,3.28298306,2309.5,2309.3,4.33013]
[1725724076498,0.55,2309.5,2309.3,4.33013]
[1725724076705,3.28335734,2309.5,2309.3,4.33013]
[1725724077160,0.55,2309.5,2309.3,4.33013]
[1725724077707,3.28335734,2309.5,2309.3,4.33013]
[1725724077893,0.55,2309.5,2309.3,4.33013]
[1725724078291,3.28335734,2309.5,2309.4,4.33012]
[1725724078478,3.55,2309.5,2309.4,4.33012]
[1725724079990,6.28335734,2309.5,2309.4,4.33012]
[1725724080470,3.55,2309.5,2309.4,4.33012]
[1725724081706,6.28331941,2309.5,2309.4,4.33012]
[1725724082070,6.28331941,2309.5,2309.3,4.33013]
[1725724082416,6.28331941,2309.5,2309.4,0.08622503]
[1725724082572,8.03241418,2309.5,2309.4,0.08622503]
[1725724082773,10.51559426,2309.5,2309.1,4.33053]
[1725724082992,5.96713347,2309.2,2309.1,4.33053]
[1725724083303,5.96713347,2309.2,2309.1,8.66122]
[1725724083304,6.06147881,2309.2,2309.1,8.66122]
[1725724086716,4.23913566,2309.2,2309.1,8.66122]
[1725724087118,4.1931641,2309.2,2309.1,8.66122]
[1725724088115,0.55,2309.2,2309.1,8.66122]
[1725724088413,3.68913566,2309.2,2309.1,8.66122]
[1725724088610,4.23913566,2309.2,2309.1,8.66122]
[1725724090013,3.68913566,2309.2,2309.1,8.66122]
[1725724091726,3.0,2309.5,2309.4,4.33012]
[1725724091883,4.23913566,2309.5,2309.4,4.33012]
[1725724092081,7.23913566,2309.5,2309.4,4.33012]
[1725724092714,7.23913566,2309.5,2309.3,4.33021]
[1725724092883,3.55,2309.4,2309.3,4.33021]
[1725724096018,6.28296906,2309.4,2309.3,4.33021]
[1725724096814,3.55,2309.4,2309.3,8.66052]
[1725724097613,3.55,2309.4,2309.3,8.74409792]
[1725724099228,2.27730658,2309.4,2309.3,0.08357792]
[1725724099380,2.27730658,2309.4,2309.3,8.74419792]
[1725724099580,5.73296906,2309.4,2309.3,4.41388792]
[1725724099821,3.55,2309.4,2309.3,4.33031]
[1725724100306,3.55,2309.4,2309.3,4.4138094]
[1725724100822,3.55,2309.4,2309.3,8.7441194]
[1725724102625,5.82731971,2309.4,2309.3,8.7441194]
[1725724102978,5.82731971,2309.4,2309.3,8.66062]
[1725724103393,5.82731971,2309.4,2309.3,8.7441194]
[1725724104666,5.912,2309.4,2309.3,8.7441194]
[1725724104986,2.912,2309.4,2309.3,8.7441194]
[1725724105182,5.912,2309.4,2309.3,8.7441194]
[1725724105387,5.912,2309.4,2309.3,8.66062]
[1725724105620,5.912,2309.4,2309.3,8.74412503]
[1725724106027,5.08733561,2309.4,2309.3,8.74412503]
[1725724106897,7.3646339,2309.4,2309.3,8.74412503]
[1725724107105,5.08733561,2309.4,2309.3,8.74412503]
[1725724107694,2.08733561,2309.4,2309.3,8.74412503]
[1725724111227,1.53733561,2309.4,2309.3,8.74412503]
[1725724117302,4.27090282,2309.4,2309.3,0.08350503]
[1725724117545,6.13334207,2309.4,2309.3,4.41381503]
[1725724117844,6.13334207,2309.4,2309.3,4.33031]
[1725724118438,6.13334207,2309.4,2309.3,4.41106133]
[1725724121306,5.08733561,2309.4,2309.3,4.41106133]
[1725724122799,2.08733561,2309.4,2309.3,4.41106133]
[1725724125364,4.82187387,2309.4,2309.3,4.41106133]
[1725724125562,5.08733561,2309.4,2309.3,4.41106133]
[1725724125961,7.82184395,2309.4,2309.3,4.41106133]
[1725724126471,5.08733561,2309.4,2309.3,4.41106133]
[1725724126648,2.08733561,2309.4,2309.3,4.41106133]
[1725724127366,4.82186143,2309.4,2309.3,4.41106133]
[1725724127525,5.08733561,2309.4,2309.3,4.41106133]
[1725724127726,2.08733561,2309.4,2309.3,4.41106133]
[1725724127961,4.82189631,2309.4,2309.3,4.41106133]
[1725724128227,7.82189631,2309.4,2309.3,4.41106133]
[1725724128459,5.08733561,2309.4,2309.3,4.41106133]
[1725724128850,2.08733561,2309.4,2309.3,4.41106133]
[1725724129173,4.82185307,2309.4,2309.3,4.41106133]
[1725724129333,7.82185307,2309.4,2309.3,4.41106133]
[1725724129755,7.82182604,2309.4,2309.3,4.41106133]
[1725724130567,5.08733561,2309.4,2309.3,4.41106133]
[1725724131439,4.8219093,2309.4,2309.3,4.41106133]
[1725724131644,5.08733561,2309.4,2309.3,4.41106133]
[1725724132541,5.08733561,2309.4,2309.3,0.08075133]
[1725724132948,5.5411983,2309.4,2309.2,8.66088]
[1725724133141,5.9567,2309.3,2308.8,4.3311]
[1725724133346,1.53733561,2309.0,2308.9,8.66212]
[1725724135085,1.53733561,2309.0,2308.9,4.33106]
[1725724135291,1.53733561,2309.0,2308.6,4.3316]
[1725724135292,12.58013306,2309.0,2308.6,4.33157]
[1725724135493,4.27139422,2308.8,2308.6,4.33157]
[1725724135780,3.28405861,2308.7,2308.6,4.33157]
[1725724135977,6.28405861,2308.7,2308.6,4.33157]
[1725724136181,3.55,2308.7,2308.6,4.33157]
[1725724137482,5.82602486,2308.7,2308.6,8.66319]
[1725724139163,3.55,2308.7,2308.6,8.66319]
[1725724139577,5.36998682,2308.7,2308.6,8.66319]
[1725724140101,5.3699855,2308.7,2308.6,8.66319]
[1725724140473,3.55,2308.7,2308.6,8.66319]
[1725724140798,5.36996326,2308.7,2308.6,8.66319]
[1725724141161,3.55,2308.7,2308.6,8.66319]
[1725724141365,5.36988864,2308.7,2308.6,8.66319]
[1725724141903,5.36962275,2308.7,2308.6,8.66319]
[1725724142076,3.55,2308.7,2308.6,8.66319]
[1725724142400,4.91440652,2308.7,2308.6,8.66319]
[1725724142561,5.36963198,2308.7,2308.6,8.66319]
[1725724142762,5.36963198,2308.7,2308.6,8.74235411]
[1725724143566,5.82413027,2308.7,2308.6,8.74235411]
[1725724144669,3.55,2308.7,2308.6,8.74235411]
[1725724144868,5.82413027,2308.7,2308.6,8.74235411]
[1725724145089,3.55,2308.7,2308.6,8.74235411]
[1725724145300,5.36866178,2308.7,2308.6,8.74235411]
[1725724148966,4.81866178,2308.7,2308.6,8.74235411]
[1725724153505,3.0,2308.7,2308.6,8.74235411]
[1725724153706,4.36307209,2308.7,2308.6,8.74235411]
[1725724157325,4.81866178,2308.7,2308.6,4.41073411]
[1725724157811,4.81771157,2308.7,2308.6,4.41073411]
[1725724158005,4.81770219,2308.7,2308.6,4.41073411]
[1725724158672,5.36770219,2308.7,2308.6,4.41073411]
[1725724159291,5.36770219,2308.7,2308.6,8.74235411]
[1725724159626,5.36770219,2308.7,2308.6,4.41073411]
[1725724160510,5.36770219,2308.7,2308.6,8.74235411]
[1725724160887,4.81770219,2308.7,2308.6,8.74235411]
[1725724161089,3.0,2308.7,2308.6,11.12095411]
[1725724161498,4.36323892,2308.8,2308.7,8.66288]
[1725724161705,3.0,2308.8,2308.7,8.66288]
[1725724161906,4.36340876,2308.8,2308.7,8.74226313]
[1725724162529,4.36355199,2308.8,2308.7,8.74226313]
[1725724162681,3.0,2308.8,2308.7,8.74226313]
[1725724163040,4.36354413,2308.8,2308.7,8.74226313]
[1725724164899,4.36371728,2308.8,2308.7,8.74226313]
[1725724165275,4.81770219,2308.8,2308.7,8.74226313]
[1725724165508,4.36386863,2308.8,2308.7,8.74226313]
[1725724165686,4.81770219,2308.8,2308.7,8.74226313]
[1725724171843,5.27345101,2308.8,2308.7,8.74226313]
[1725724172923,4.8198795,2308.8,2308.7,8.74226313]
[1725724173326,5.27345101,2308.8,2308.7,8.74226313]
[1725724173637,4.82017547,2308.8,2308.7,8.74226313]
[1725724174008,3.0,2308.8,2308.7,8.74226313]
[1725724174191,4.82017112,2308.8,2308.7,8.74226313]
[1725724174942,5.27345101,2308.8,2308.7,8.74226313]
[1725724175250,4.79664037,2308.8,2308.7,4.41082313]
[1725724175389,3.55,2308.8,2308.7,4.41082313]
[1725724176299,6.27814121,2308.8,2308.7,4.41082313]
[1725724176497,6.27814121,2308.8,2308.7,4.33144]
[1725724176891,6.27814121,2308.8,2308.7,4.40818247]
[1725724179632,6.27814121,2308.8,2308.7,8.73962247]
[1725724179633,3.55,2308.8,2308.7,8.73962247]
[1725724179931,4.53733561,2308.8,2308.7,8.73962247]
[1725724180309,7.27158157,2308.8,2308.7,8.73962247]
[1725724180995,7.27158157,2308.8,2308.7,4.40818247]
[1725724183000,7.27219773,2308.8,2308.7,4.40818247]
[1725724183730,4.53733561,2308.8,2308.7,4.40818247]
[1725724183903,4.27228637,2308.8,2308.7,4.40818247]
[1725724184104,7.27228637,2308.8,2308.7,4.40818247]
[1725724184911,8.77497908,2308.8,2308.7,0.07674247]
[1725724185226,7.43593561,2308.8,2308.6,8.66299]
[1725724185420,7.43593561,2308.8,2308.7,4.33144]
[1725724185746,10.62660808,2308.8,2308.7,0.07674247]
[1725724186054,7.43593561,2308.8,2308.5,8.66342]
[1725724186343,1.53733561,2308.6,2308.5,4.3317]
[1725724187353,1.53733561,2308.6,2308.5,4.40869869]
[1725724188353,4.27143859,2308.6,2308.5,4.40869869]
[1725724188541,7.27143859,2308.6,2308.5,4.40869869]
[1725724188737,7.27143843,2308.6,2308.5,4.40869869]
[1725724189452,19.73589633,2308.6,2308.5,0.07699869]
[1725724189610,2.3486,2308.4,2308.0,4.33261]
[1725724189809,4.27185109,2308.1,2308.0,4.33261]
[1725724190048,7.27185109,2308.1,2307.9,4.33294]
[1725724190219,1.53733561,2308.0,2307.8,4.33299]
[1725724190546,9.62045109,2308.0,2307.8,4.33299]
[1725724190850,9.62045109,2308.0,2307.8,4.33298]
[1725724191266,9.62045109,2308.0,2307.8,8.66602]
[1725724191557,6.88593561,2308.0,2307.8,8.66602]
[1725724191867,9.62045109,2308.0,2307.8,8.66602]
[1725724192047,9.62045109,2308.0,2307.9,4.33294]
[1725724192048,6.88593561,2308.0,2307.9,4.33294]
[1725724192551,6.81264206,2308.0,2307.9,4.33294]
[1725724194239,6.3565809,2308.0,2307.9,4.33294]
[1725724194442,4.53733561,2308.0,2307.9,4.33294]
[1725724194782,6.35657197,2308.0,2307.9,4.33294]
[1725724194962,6.35657197,2308.0,2307.9,8.66588]
[1725724195252,6.35657197,2308.0,2307.9,8.73627249]
[1725724197269,6.35657197,2308.0,2307.9,4.40333249]
[1725724197563,7.89968916,2308.0,2307.9,0.07039249]
[1725724197717,6.17674345,2308.0,2307.7,8.66636]
[1725724197917,3.3558262,2307.8,2307.7,4.33314]
[1725724198159,6.3558262,2307.8,2307.7,4.33314]
[1725724198362,7.87766093,2307.8,2307.6,4.3335]
[1725724198585,4.36349035,2307.7,2307.6,8.66692]
[1725724198965,3.0,2307.7,2307.6,8.66692]
[1725724199171,4.36348292,2307.7,2307.6,8.66692]
[1725724199552,1.36348292,2307.7,2307.6,8.66692]
[1725724199758,1.36322086,2308.2,2308.0,4.33275]
[1725724199963,1.36322086,2308.3,2308.2,15.26724]
[1725724200166,1.36322086,2308.4,2308.3,12.99657]
[1725724200378,1.362886,2308.5,2308.4,8.664]
[1725724200595,1.362886,2308.5,2308.4,12.996]
[1725724200800,1.362886,2308.7,2308.5,4.33181]
[1725724201100,2.90022161,2308.7,2308.5,4.33181]
[1725724201265,2.90022161,2308.7,2308.6,8.66324]
[1725724201796,1.53733561,2308.7,2308.6,8.66324]
[1725724202089,5.05442798,2308.7,2308.6,8.66324]
[1725724202469,1.81849059,2308.8,2308.7,8.66288]
[1725724202857,1.81849059,2308.8,2308.7,8.73267705]
[1725724203565,4.81849059,2308.8,2308.7,8.73267705]
[1725724204697,5.36704039,2308.8,2308.7,4.40123705]
[1725724206377,5.36704039,2308.8,2308.7,8.73267705]
[1725724206580,5.31704039,2308.8,2308.7,8.73267705]
[1725724206965,5.31704039,2308.8,2308.7,4.40123705]
[1725724207887,5.31704039,2308.8,2308.7,0.06979705]
[1725724207888,9.20902998,2308.8,2308.7,0.06979705]
[1725724208094,6.93779427,2308.8,2308.7,0.06979705]
[1725724208477,6.93779427,2308.8,2308.5,4.3318]
[1725724208677,6.93779427,2308.8,2308.7,0.06976915]
[1725724208868,10.62946088,2308.8,2308.6,0.06989726]
[1725724209070,4.59008915,2308.7,2308.5,4.33176]
[1725724209395,4.81717608,2308.6,2308.5,4.33176]
[1725724209699,5.36717608,2308.6,2308.5,4.33176]
[1725724215079,5.82165313,2308.6,2308.5,4.33176]
[1725724215498,5.82216692,2308.6,2308.4,4.33185]
[1725724215684,1.81772863,2308.5,2308.4,4.33185]
[1725724217087,1.81772863,2308.5,2308.4,4.40161287]
[1725724218021,1.81772863,2308.5,2308.4,8.73361287]
[1725724219423,1.36353985,2308.5,2308.4,8.73361287]
[1725724219612,5.36772863,2308.6,2308.5,4.33181]
[1725724220014,3.55,2308.6,2308.5,4.40144474]
[1725724220426,5.82216692,2308.6,2308.5,4.40144474]
[1725724220597,5.82216692,2308.6,2308.5,0.06963474]
[1725724220598,7.05065186,2308.6,2308.5,0.06963474]
[1725724220799,11.49186198,2308.6,2308.5,0.06963474]
[1725724220997,9.88773383,2308.6,2308.2,4.33229]
[1725724221237,1.81852663,2308.3,2308.2,4.33229]
[1725724221401,5.36852663,2308.3,2308.2,4.33229]
[1725724221801,5.82315829,2308.3,2308.2,4.33229]
[1725724222139,5.36855652,2308.3,2308.2,4.33229]
[1725724222741,5.36855652,2308.3,2308.2,8.66467]
[1725724222742,4.81855652,2308.3,2308.2,8.66467]
[1725724222942,4.36390736,2308.3,2308.2,8.66467]
[1725724223434,4.36390736,2308.3,2308.2,12.99705]
[1725724223596,4.36390736,2308.4,2308.3,8.66438]
[1725724224040,3.0,2308.4,2308.3,8.66438]
[1725724224361,3.0,2308.5,2308.4,4.332]
[1725724224649,2.27315829,2308.5,2308.4,8.664]
[1725724224810,3.0,2308.6,2308.5,4.33181]
[1725724225147,4.2899793,2308.6,2308.5,4.33181]
[1725724225303,7.01700351,2308.6,2308.4,4.332]
[1725724225509,2.27321944,2308.5,2308.4,4.332]
[1725724225742,5.27321944,2308.5,2308.4,4.332]
[1725724226417,5.82321944,2308.5,2308.4,4.332]
[1725724227850,3.55,2308.5,2308.4,4.332]
[1725724228150,5.82363344,2308.5,2308.4,4.332]
[1725724228347,3.55,2308.5,2308.4,4.332]
[1725724228504,5.82380894,2308.5,2308.4,4.332]
[1725724228909,3.55,2308.5,2308.4,4.332]
[1725724229107,6.94017513,2308.5,2308.4,4.332]
[1725724229911,8.47879873,2308.5,2308.4,4.332]
[1725724230220,2.3825,2308.4,2308.2,4.33233]
[1725724230410,3.90788614,2308.3,2308.2,4.33238]
[1725724230917,6.90788614,2308.3,2308.2,4.33238]
[1725724232548,6.90788614,2308.3,2308.2,8.00555681]
[1725724232847,6.35788614,2308.3,2308.2,8.00555681]
[1725724236258,1.81926254,2308.3,2308.2,12.33793681]
[1725724236461,1.36459895,2308.5,2308.4,8.664]
[1725724236761,1.36459895,2308.8,2308.7,12.99432]
[1725724237063,9.08926254,2309.0,2308.9,17.32424]
[1725724237064,1.36459895,2309.0,2308.9,17.32424]
[1725724237372,1.81926254,2309.1,2309.0,12.99261]
[1725724237373,1.36459895,2309.1,2309.0,12.99261]
[1725724237574,2.90322255,2309.2,2309.1,8.66138]
[1725724237871,2.90228887,2309.2,2309.1,8.66138]
[1725724238071,5.05368011,2309.2,2309.1,8.78497571]
[1725724238229,5.50927738,2309.2,2309.1,8.78497571]
[1725724238428,5.05339103,2309.2,2309.1,8.78497571]
[1725724238743,5.05338746,2309.2,2309.1,8.78497571]
[1725724239997,1.36337262,2309.2,2309.1,8.78497571]
[1725724240660,4.36337262,2309.2,2309.1,8.78497571]
[1725724242359,3.0,2309.2,2309.1,8.78497571]
[1725724242565,4.81711869,2309.3,2309.2,8.661]
[1725724243072,4.81711869,2309.3,2309.2,8.7844653]
[1725724243286,4.81636745,2309.3,2309.2,8.7844653]
[1725724244347,4.81625903,2309.3,2309.2,8.7844653]
[1725724244890,4.81625903,2309.3,2309.2,4.4539653]
[1725724245181,5.72455924,2309.3,2309.2,4.4539653]
[1725724245392,5.27040325,2309.3,2309.2,8.7844653]
[1725724245679,4.81613563,2309.3,2309.2,8.7844653]
[1725724246246,3.45374607,2309.3,2309.2,8.7844653]
[1725724246495,4.81598729,2309.3,2309.2,8.7844653]
[1725724247190,3.0,2309.3,2309.2,13.1149653]
[1725724247356,3.0,2309.4,2309.3,8.66062]
[1725724247560,4.36224122,2309.5,2309.4,8.66024]
[1725724247753,4.36224122,2309.5,2309.4,8.78262756]
[1725724249666,3.0,2309.5,2309.4,8.78262756]
[1725724249984,4.36224122,2309.5,2309.4,8.78262756]
[1725724250393,3.0,2309.5,2309.4,8.78262756]
[1725724262106,4.53707746,2309.5,2309.4,8.78262756]
[1725724262272,1.53707746,2309.5,2309.4,8.78262756]
[1725724263309,2.12700933,2309.5,2309.4,4.45250756]
[1725724263665,5.12700933,2309.5,2309.4,4.45250756]
[1725724263871,5.12700933,2309.5,2309.4,4.33012]
[1725724265903,2.12700933,2309.5,2309.4,4.33012]
[1725724266307,2.12700933,2309.5,2309.3,4.33028]
[1725724266612,2.12700933,2309.5,2309.4,4.33012]
[1725724266915,3.48925055,2309.5,2309.4,4.4518551]
[1725724267131,6.48925055,2309.5,2309.4,4.4518551]
[1725724268109,6.48925055,2309.5,2309.4,0.1217351]
[1725724268690,6.48925055,2309.5,2309.4,4.4518551]
[1725724270289,6.48925055,2309.5,2309.4,8.7819751]
[1725724272712,4.36224122,2309.5,2309.4,8.7819751]
[1725724273014,4.53707746,2309.5,2309.4,8.7819751]
[1725724273219,1.53707746,2309.5,2309.4,8.7819751]
[1725724276133,1.53707746,2309.5,2309.4,13.1120951]
[1725724276841,1.53707746,2309.5,2309.4,8.7819751]
[1725724277644,2.89931868,2309.5,2309.4,8.7819751]
[1725724277817,5.89931868,2309.5,2309.4,8.7819751]
[1725724279533,6.35373464,2309.5,2309.4,8.7819751]
[1725724281512,6.80717053,2309.5,2309.4,8.7819751]
[1725724282440,4.53707746,2309.5,2309.4,8.7819751]
[1725724288354,5.15212799,2309.5,2309.4,8.7819751]
[1725724288955,4.53707746,2309.5,2309.4,8.7819751]
[1725724293925,3.0,2309.5,2309.4,8.7819751]
[1725724294225,4.53707746,2309.5,2309.4,8.7819751]
[1725724294685,2.27817103,2309.6,2309.5,19.65106]
[1725724294961,8.86e-06,2310.0,2309.9,10.98968]
[1725724295132,1.62e-06,2310.6,2310.5,4.32806]
[1725724295340,1.62e-06,2310.6,2310.5,15.31548]
[1725724295559,2.27817103,2310.9,2310.8,12.9825]
[1725724295729,2.27817103,2311.0,2310.9,12.98193]
[1725724295930,4.27103779,2311.3,2311.2,8.6535]
[1725724295931,2.27817103,2311.3,2311.2,8.6535]
[1725724296232,3.81524849,2311.6,2311.5,4.32619]
[1725724296762,3.81524849,2311.6,2311.5,4.44429252]
[1725724296961,3.81524849,2311.6,2311.5,0.11810252]
[1725724297282,1.91860231,2311.6,2311.5,0.11810252]
[1725724297443,4.91860231,2311.6,2311.5,0.11810252]
[1725724297759,1.91860231,2311.6,2311.4,4.32622]
[1725724297970,3.68273635,2311.5,2311.4,4.32622]
[1725724298266,6.16073635,2311.5,2311.3,4.32656]
[1725724298425,4.56357236,2311.4,2311.2,8.65324]
[1725724299060,3.0,2311.3,2311.2,4.32661]
[1725724302248,3.0,2311.3,2311.2,8.65336]
[1725724302967,3.0,2311.3,2311.2,12.98011]
[1725724303272,6.68273635,2311.7,2311.6,4.326]
[1725724303568,6.68273635,2311.7,2311.6,8.652]
[1725724303569,7.79880999,2311.7,2311.6,8.652]
[1725724304185,7.79880999,2311.7,2311.6,4.326]
[1725724304847,7.79880999,2311.7,2311.6,8.652]
[1725724305040,3.68273635,2312.0,2311.8,4.32551]
[1725724305237,3.68273635,2312.0,2311.9,4.32544]
[1725724305443,3.68273635,2312.0,2311.9,8.65088]
[1725724305667,0.45365546,2312.1,2312.0,8.6505]
[1725724305834,4.13639181,2312.1,2312.0,8.6505]
[1725724306181,3.68273635,2312.1,2312.0,8.6505]
[1725724307446,6.68273635,2312.1,2312.0,8.7665433]
[1725724307777,3.68273635,2312.1,2312.0,8.7665433]
[1725724307942,6.68273635,2312.1,2312.0,8.7665433]
[1725724308875,6.68273635,2312.1,2312.0,13.0917933]
[1725724309180,3.0,2312.1,2312.0,13.0917933]
[1725724309348,3.0,2312.3,2312.0,4.4412933]
[1725724309541,3.0,2312.3,2312.2,8.64976]
[1725724309843,3.0,2312.3,2312.2,8.76516489]
[1725724313396,3.0,2312.3,2312.2,0.11540489]
[1725724313397,4.68381658,2312.3,2312.2,0.11540489]
[1725724313696,4.21827364,2312.3,2311.9,4.32532]
[1725724313899,3.66827364,2312.3,2312.2,0.10723664]
[1725724314058,3.66827364,2312.3,2312.1,8.65002]
[1725724314258,3.66827364,2312.3,2312.2,0.10723664]
[1725724315479,3.0,2312.3,2312.2,4.43211664]
[1725724315681,3.68273635,2312.4,2312.3,8.64938]
[1725724316071,3.68273635,2312.4,2312.3,8.75660855]
[1725724316893,3.68273635,2312.4,2312.3,0.10722855]
[1725724317081,7.05100999,2312.4,2312.2,4.32488]
[1725724317393,2.476,2312.2,2311.9,4.32531]
[1725724317560,3.68273635,2312.0,2311.9,4.32531]
[1725724317754,6.68273635,2312.0,2311.9,4.32531]
[1725724318490,6.68273635,2312.0,2311.8,4.32562]
[1725724318697,3.0,2311.9,2311.8,4.32562]
[1725724319402,3.0,2311.9,2311.8,8.65125]
[1725724322026,3.0,2311.9,2311.8,4.32562]
[1725724322212,3.66827364,2311.9,2311.7,4.32582]
[1725724322508,3.66827364,2311.9,2311.8,0.10778471]
[1725724322509,3.0,2311.9,2311.8,0.10778471]
[1725724322663,3.0,2311.9,2311.8,4.32563]
[1725724322862,3.0,2311.9,2311.8,8.75904471]
[1725724323360,3.0,2311.9,2311.8,0.10778471]
[1725724323667,10.46979364,2311.9,2311.2,4.32672]
[1725724323890,3.68273635,2311.3,2311.2,4.32672]
[1725724324109,6.68273635,2311.3,2311.2,4.32672]
[1725724324320,6.68273635,2311.3,2311.1,4.32684]
[1725724324607,6.68273635,2311.3,2311.0,4.32708]
[1725724325479,6.68273635,2311.3,2311.1,8.65378]
[1725724325698,6.68273635,2311.3,2311.2,4.32675]
[1725724326352,3.0,2311.3,2311.2,8.6535]
[1725724326602,3.0,2311.5,2311.4,4.32619]
[1725724326967,3.0,2311.5,2311.4,8.65257]
[1725724327176,3.68273635,2311.6,2311.5,8.65238]
[1725724327383,7.27,2311.9,2311.8,4.32563]
[1725724327384,10.95273635,2311.9,2311.8,4.32563]
[1725724327615,3.68273635,2311.9,2311.8,4.32563]
[1725724327796,3.68273635,2311.9,2311.8,8.65126]
[1725724328513,6.68273635,2311.9,2311.8,8.65126]
[1725724332118,3.68273635,2312.2,2312.1,8.65014]
[1725724332414,2.476,2312.4,2312.3,4.3246]
[1725724332415,3.68273635,2312.4,2312.3,4.3246]
[1725724333715,3.68273635,2312.4,2312.3,8.64929]
[1725724334299,6.68273635,2312.4,2312.3,8.64929]
[1725724335833,6.68273635,2312.4,2312.3,4.3246]
[1725724336324,7.27,2313.3,2313.2,12.96903]
[1725724336625,7.27,2313.3,2312.9,6.72947]
[1725724336626,1.35078867,2313.4,2313.3,4.32282]
[1725724336935,2.03424633,2313.4,2313.2,4.323]
[1725724337104,2.03424633,2313.4,2312.7,4.32389]
[1725724337105,2.0,2313.1,2312.7,4.32389]
[1725724337304,2.0,2313.1,2312.7,8.64767]
[1725724337305,3.68273635,2313.0,2312.7,8.64767]
[1725724337612,3.68273635,2313.0,2312.9,4.32357]
[1725724337924,5.98173635,2313.3,2313.0,8.64676]
[1725724338131,3.55,2313.2,2313.1,4.3232]
[1725724338428,3.55,2313.2,2313.0,4.32338]
[1725724338600,4.8382525,2313.2,2313.0,4.32329]
[1725724339289,4.8382525,2313.2,2313.0,4.32328]
[1725724339699,3.55,2313.2,2313.1,4.3232]
[1725724339891,3.55,2313.2,2312.8,4.32363]
[1725724340200,3.55,2313.2,2312.8,8.64729]
[1725724340499,3.55,2313.2,2313.0,4.32337]
[1725724340731,3.55,2313.2,2313.1,4.3232]
[1725724340930,7.33252502,2313.6,2313.3,4.32268]
[1725724341127,7.33252502,2313.6,2312.1,3.68273635]
[1725724341128,3.68273635,2313.6,2313.5,4.32245]
[1725724342096,3.68273635,2313.6,2313.4,4.3225]
[1725724342297,4.00100999,2313.6,2313.4,4.3225]
[1725724342502,4.00100999,2313.6,2313.5,0.10450494]
[1725724342827,4.00100999,2313.6,2313.5,4.42695494]
[1725724342999,5.98173635,2313.9,2313.6,4.32225]
[1725724343423,5.98173635,2313.9,2313.7,0.10424512]
[1725724343634,5.98173635,2313.9,2313.6,4.32225]
[1725724343835,7.98173635,2313.9,2313.7,0.10424512]
[1725724344039,8.77990999,2313.9,2313.7,0.10424512]
[1725724344236,0.55,2313.8,2313.6,4.32225]
[1725724344406,3.55,2313.8,2313.6,4.32225]
[1725724344607,3.55,2313.8,2313.7,0.10424512]
[1725724345052,3.55,2313.8,2313.5,4.32245]
[1725724345337,5.215143,2313.8,2313.7,0.10424512]
[1725724345522,5.215143,2313.8,2313.6,0.10437502]
[1725724345837,5.215143,2313.8,2313.5,4.32245]
[1725724346048,5.215143,2313.8,2313.7,0.10424512]
[1725724346343,5.215143,2313.8,2313.6,4.42662502]
[1725724346504,5.215143,2313.8,2313.7,0.10424512]
[1725724346834,5.215143,2313.8,2313.7,4.42632512]
[1725724346835,3.5,2313.8,2313.7,4.42632512]
[1725724347043,3.0,2313.8,2313.7,4.42632512]
[1725724347216,3.0,2313.8,2313.7,0.10424512]
[1725724347420,5.4025,2313.8,2313.7,0.10424512]
[1725724347714,10.83291363,2313.8,2313.7,0.10424512]
[1725724347934,10.83291363,2313.8,2313.3,4.3228]
[1725724348111,3.68273635,2313.6,2313.2,4.32288]
[1725724348437,5.0,2313.5,2313.3,4.3228]